{"text_format":"3","workbook":"xlsx","n_sheets":2,"sheets":["Suivi d’activité","Liste d’activités"],"not_rendered":{"charts":1,"defined_names":15},"read":"whole","date_system":"1900"}

{"sheet":"Suivi d’activité","index":0,"n_rows":23,"n_cols":11,"rows_kept":23,"merged":[[0,0,0,2],[0,3,3,10],[1,0,1,2],[2,0,5,0],[2,1,3,1],[4,1,5,1],[6,0,9,0],[6,1,7,1],[8,1,9,1],[10,0,13,0],[10,1,11,1],[12,1,13,1],[14,0,17,0],[14,1,15,1],[16,1,17,1],[18,0,21,0],[18,1,19,1],[20,1,21,1],[22,0,23,0],[22,1,23,1],[22,2,23,2]]}
["Suivi d’activité"]
["Suivez vos 5 activités principales! Remplacez les informations suivantes par les activités que vous effectuez le plus souvent. Ajoutez ensuite des entrées pour celles-ci dans la feuille des activités pour suivre vos progrès."]
["Vélo",{"$f":"SUMIF(Liste[Activité],Catégorie1,Liste[Total])","v":{"v":19.46,"d":"19.5"}}]
[null,null,"Miles"]
[null,{"$f":"SUMIF(Liste[Activité],Catégorie1,Liste[Calories])","v":847},"Calories","Date","Activité","Heure de début","Durée","Total","Unité","Calories","Note"]
[{"$nulls":3},"Date","Vélo","16:00:00","00:23:00",3.66,{"$f":"IFERROR(VLOOKUP(Liste[[#This Row],[Activité]],RechercheActivité,2,FALSE),\"\")","v":"Miles"},173,"Temps chaud et humide"]
["Natation",{"$f":"SUMIF(Liste[Activité],Catégorie2,Liste[Total])","v":{"v":1700,"d":"1700.0"}},null,"Date","Vélo","14:30:00","00:45:00",7.8,{"$f":"IFERROR(VLOOKUP(Liste[[#This Row],[Activité]],RechercheActivité,2,FALSE),\"\")","v":"Miles"},330,"Après-midi détente"]
[null,null,"Mètres","Date","Natation","10:00:00","00:30:00",1700,{"$f":"IFERROR(VLOOKUP(Liste[[#This Row],[Activité]],RechercheActivité,2,FALSE),\"\")","v":"Mètres"},237,"Nuit de sommeil réparateur avant"]
[null,{"$f":"SUMIF(Liste[Activité],Catégorie2,Liste[Calories])","v":237},"Calories","Date","Devoir 3","13:30:00","00:35:00",3227,{"$f":"IFERROR(VLOOKUP(Liste[[#This Row],[Activité]],RechercheActivité,2,FALSE),\"\")","v":"Pas"},150]
[{"$nulls":3},"Date","Devoir 4","05:30:00","00:30:00",30,{"$f":"IFERROR(VLOOKUP(Liste[[#This Row],[Activité]],RechercheActivité,2,FALSE),\"\")","v":"Répétitions"},115]
["Devoir 3",{"$f":"SUMIF(Liste[Activité],Catégorie3,Liste[Total])","v":{"v":3227,"d":"3227.0"}},null,"Date","Devoir 5","06:00:00","00:45:00",5,{"$f":"IFERROR(VLOOKUP(Liste[[#This Row],[Activité]],RechercheActivité,2,FALSE),\"\")","v":"Miles"},345]
[null,null,"Pas","Date","Vélo","10:00:00","00:40:00",8,{"$f":"IFERROR(VLOOKUP(Liste[[#This Row],[Activité]],RechercheActivité,2,FALSE),\"\")","v":"Miles"},344]
[null,{"$f":"SUMIF(Liste[Activité],Catégorie3,Liste[Calories])","v":150},"Calories"]
[]
["Devoir 4",{"$f":"SUMIF(Liste[Activité],Catégorie4,Liste[Total])","v":{"v":30,"d":"30.0"}}]
[null,null,"Répétitions"]
[null,{"$f":"SUMIF(Liste[Activité],Catégorie4,Liste[Calories])","v":115},"Calories"]
[]
["Devoir 5",{"$f":"SUMIF(Liste[Activité],Catégorie5,Liste[Total])","v":{"v":5,"d":"5.0"}}]
[null,null,"Miles"]
[null,{"$f":"SUMIF(Liste[Activité],Catégorie5,Liste[Calories])","v":345},"Calories"]
[]
["Total",{"$f":"SUM(B21,B17,B13,B9,B5)","v":1694},"Calories"]

{"sheet":"Liste d’activités","index":1,"n_rows":8,"n_cols":3,"rows_kept":8,"hidden":true,"merged":[[0,1,0,2],[1,1,1,2]]}
[null,"Liste d’activités"]
[null,"La liste suivante est liée aux activités personnalisées et renseigne la liste déroulante dans le journal d’activités. Cette feuille doit rester masquée."]
[null,"Activité","Unité"]
[null,{"$f":"TRIM(Catégorie1)","v":"Vélo"},{"$f":"Catégorie1Unité","v":"Miles"}]
[null,{"$f":"TRIM(Catégorie2)","v":"Natation"},{"$f":"Catégorie2Unité","v":"Mètres"}]
[null,{"$f":"TRIM(Catégorie3)","v":"Devoir 3"},{"$f":"Catégorie3Unité","v":"Pas"}]
[null,{"$f":"TRIM(Catégorie4)","v":"Devoir 4"},{"$f":"Catégorie4Unité","v":"Répétitions"}]
[null,{"$f":"TRIM(Catégorie5)","v":"Devoir 5"},{"$f":"Catégorie5Unité","v":"Miles"}]